[Event "TePe Sigeman Chess Tournament 2026"]
[Site "Elite Plaza Hotel, Gustav Adolfs Torg 49, Malmo, Sweden"]
[Date "2026.05.07"]
[Round "7.1"]
[White "Erigaisi, Arjun"]
[Black "Woodward, Andy"]
[Result "1/2-1/2"]
[TimeControl "90 minutes for 40 moves + 30 minutes for the rest of the game + 30 seconds per move from move one."]
[WhiteTitle "GM"]
[BlackTitle "GM"]
[WhiteFideId "35009192"]
[BlackFideId "30953499"]
[WhiteElo "2751"]
[BlackElo "2635"]

1. d4 {[%clk 01:30:53]} {[%emt 00:00:07]} Nf6 {[%clk 01:30:48]} {[%emt
00:00:12]} 2. c4 {[%clk 01:31:17]} {[%emt 00:00:06]} e6 {[%clk 01:31:07]}
{[%emt 00:00:11]} 3. Nc3 {[%clk 01:31:40]} {[%emt 00:00:07]} Bb4 {[%clk
01:31:24]} {[%emt 00:00:13]} 4. g3 {[%clk 01:32:03]} {[%emt 00:00:08]} O-O
{[%clk 01:30:06]} {[%emt 00:01:48]} 5. Bg2 {[%clk 01:32:28]} {[%emt 00:00:05]}
Nc6 {[%clk 01:30:20]} {[%emt 00:00:16]} 6. e4 {[%clk 01:32:17]} {[%emt
00:00:40]} Bxc3+ {[%clk 01:30:22]} {[%emt 00:00:28]} 7. bxc3 {[%clk 01:32:41]}
{[%emt 00:00:06]} d6 {[%clk 01:30:30]} {[%emt 00:00:22]} 8. g4 {[%clk
01:31:43]} {[%emt 00:01:29]} Na5 {[%clk 01:30:23]} {[%emt 00:00:37]} 9. h4
{[%clk 01:31:49]} {[%emt 00:00:23]} Nxc4 {[%clk 01:29:51]} {[%emt 00:01:03]} 10.
h5 {[%clk 01:31:49]} {[%emt 00:00:30]} Nd7 {[%clk 01:15:08]} {[%emt 00:15:12]}
11. Qd3 {[%clk 01:06:25]} {[%emt 00:25:54]} b5 {[%clk 00:52:19]} {[%emt
00:23:20]} 12. a4 {[%clk 01:03:34]} {[%emt 00:03:21]} Ba6 {[%clk 00:49:31]}
{[%emt 00:03:17]} 13. g5 {[%clk 00:54:37]} {[%emt 00:09:28]} c5 {[%clk
00:44:03]} {[%emt 00:05:58]} 14. axb5 {[%clk 00:51:05]} {[%emt 00:04:01]} Bxb5
{[%clk 00:43:59]} {[%emt 00:00:34]} 15. Ne2 {[%clk 00:51:28]} {[%emt 00:00:07]}
Rb8 {[%clk 00:33:14]} {[%emt 00:11:16]} 16. Qh3 {[%clk 00:43:34]} {[%emt
00:08:24]} Na5 {[%clk 00:27:31]} {[%emt 00:06:13]} 17. Be3 {[%clk 00:39:14]}
{[%emt 00:04:51]} Nb3 {[%clk 00:22:24]} {[%emt 00:05:37]} 18. Ra3 {[%clk
00:38:52]} {[%emt 00:00:52]} Bxe2 {[%clk 00:19:05]} {[%emt 00:03:50]} 19. Kxe2
{[%clk 00:38:04]} {[%emt 00:01:17]} cxd4 {[%clk 00:19:30]} {[%emt 00:00:06]} 20.
cxd4 {[%clk 00:38:29]} {[%emt 00:00:05]} Qc7 {[%clk 00:19:44]} {[%emt
00:00:16]} 21. Kf3 {[%clk 00:33:33]} {[%emt 00:05:26]} f5 {[%clk 00:15:40]}
{[%emt 00:04:34]} 22. gxf6 {[%clk 00:26:06]} {[%emt 00:07:58]} Rxf6+ {[%clk
00:14:23]} {[%emt 00:01:47]} 23. Kg4 {[%clk 00:26:28]} {[%emt 00:00:07]} e5
{[%clk 00:08:20]} {[%emt 00:06:33]} 24. d5 {[%clk 00:22:46]} {[%emt 00:04:11]}
Nd4 {[%clk 00:08:19]} {[%emt 00:00:31]} 25. Kg3 {[%clk 00:20:37]} {[%emt
00:02:39]} Nc5 {[%clk 00:05:36]} {[%emt 00:03:13]} 26. Kh2 {[%clk 00:19:56]}
{[%emt 00:01:11]} Nc2 {[%clk 00:05:39]} {[%emt 00:00:28]} 27. Bxc5 {[%clk
00:19:55]} {[%emt 00:00:30]} dxc5 {[%clk 00:05:57]} {[%emt 00:00:13]} 28. Rc3
{[%clk 00:15:52]} {[%emt 00:04:33]} Rxf2 {[%clk 00:04:45]} {[%emt 00:01:42]} 29.
Rc1 {[%clk 00:13:35]} {[%emt 00:02:47]} Nd4 {[%clk 00:04:31]} {[%emt 00:00:43]}
30. Rxc5 {[%clk 00:13:50]} {[%emt 00:00:16]} Qd6 {[%clk 00:03:22]} {[%emt
00:01:39]} 31. Rc8+ {[%clk 00:13:27]} {[%emt 00:00:53]} Rxc8 {[%clk 00:03:04]}
{[%emt 00:00:49]} 32. Rxc8+ {[%clk 00:13:46]} Rf8 {[%clk 00:03:29]} {[%emt
00:00:16]} 33. Qc3 {[%clk 00:08:03]} {[%emt 00:06:13]} Qf6 {[%clk 00:01:23]}
{[%emt 00:02:36]} 34. Rxf8+ {[%clk 00:08:08]} {[%emt 00:00:25]} Qxf8 {[%clk
00:01:48]} {[%emt 00:00:05]} 35. Qc7 {[%clk 00:08:15]} {[%emt 00:00:23]} Qf4+
{[%clk 00:02:08]} {[%emt 00:00:09]} 36. Kh3 {[%clk 00:08:33]} {[%emt 00:00:11]}
Qe3+ {[%clk 00:02:01]} {[%emt 00:00:37]} 37. Kh2 {[%clk 00:08:55]} {[%emt
00:00:08]} Qf4+ {[%clk 00:02:29]} {[%emt 00:00:02]} 38. Kh3 {[%clk 00:09:19]}
{[%emt 00:00:06]} g5 {[%clk 00:01:57]} {[%emt 00:01:02]} 39. hxg6 {[%clk
00:08:48]} {[%emt 00:01:01]} Qh6+ {[%clk 00:02:00]} {[%emt 00:00:27]} 40. Kg3
{[%clk 00:09:13]} {[%emt 00:00:05]} Qf4+ {[%clk 00:01:34]} {[%emt 00:00:57]} 41.
Kh3 {[%clk 00:09:38]} {[%emt 00:00:05]} Qh6+ {[%clk 00:23:21]} {[%emt
00:08:43]} 42. Kg3 {[%clk 00:39:44]} {[%emt 00:00:23]} Qxg6+ {[%clk 00:23:43]}
{[%emt 00:00:08]} 43. Kh2 {[%clk 00:39:18]} {[%emt 00:00:56]} Qh6+ {[%clk
00:23:57]} {[%emt 00:00:17]} 44. Kg1 {[%clk 00:39:22]} {[%emt 00:00:26]} Qc1+
{[%clk 00:13:55]} {[%emt 00:10:32]} 45. Qxc1 {[%clk 00:39:26]} {[%emt
00:00:26]} Ne2+ {[%clk 00:14:21]} {[%emt 00:00:04]} 46. Kf2 {[%clk 00:39:17]}
{[%emt 00:00:38]} Nxc1 {[%clk 00:14:46]} {[%emt 00:00:06]} 47. Ke3 {[%clk
00:35:56]} {[%emt 00:03:51]} Kf7 {[%clk 00:14:06]} {[%emt 00:01:09]} 48. Kd2
{[%clk 00:36:03]} {[%emt 00:00:23]} Nb3+ {[%clk 00:12:43]} {[%emt 00:01:53]} 49.
Kc3 {[%clk 00:36:24]} {[%emt 00:00:10]} Nd4 {[%clk 00:12:36]} {[%emt 00:00:37]}
50. Kb4 {[%clk 00:24:59]} {[%emt 00:11:55]} Ke7 {[%clk 00:06:27]} {[%emt
00:06:39]} 51. Ka5 {[%clk 00:24:47]} {[%emt 00:00:42]} h5 {[%clk 00:05:31]}
{[%emt 00:01:26]} 52. Ka6 {[%clk 00:25:00]} {[%emt 00:00:18]} h4 {[%clk
00:05:33]} {[%emt 00:00:29]} 53. Kxa7 {[%clk 00:25:25]} {[%emt 00:00:05]} Kd6
{[%clk 00:03:04]} {[%emt 00:02:59]} 54. Kb6 {[%clk 00:25:41]} {[%emt 00:00:13]}
Nc2 {[%clk 00:00:59]} {[%emt 00:02:35]} 55. Kb5 {[%clk 00:25:44]} {[%emt
00:00:27]} Ne3 {[%clk 00:01:27]} {[%emt 00:00:02]} 56. Bf3 {[%clk 00:24:19]}
{[%emt 00:01:55]} h3 {[%clk 00:01:41]} {[%emt 00:00:17]} 57. Kb4 {[%clk
00:24:41]} {[%emt 00:00:08]} Nc2+ {[%clk 00:00:37]} {[%emt 00:01:35]} 58. Kc3
{[%clk 00:24:34]} {[%emt 00:00:36]} Nd4 {[%clk 00:01:01]} {[%emt 00:00:06]} 59.
Bh1 {[%clk 00:24:59]} {[%emt 00:00:05]} Ne2+ {[%clk 00:00:32]} {[%emt
00:00:59]} 60. Kd2 {[%clk 00:25:14]} {[%emt 00:00:15]} Nd4 {[%clk 00:00:44]}
{[%emt 00:00:18]} 1/2-1/2

[Event "TePe Sigeman Chess Tournament 2026"]
[Site "Elite Plaza Hotel, Gustav Adolfs Torg 49, Malmo, Sweden"]
[Date "2026.05.07"]
[Round "7.2"]
[White "Abdusattorov, Nodirbek"]
[Black "Van Foreest, Jorden"]
[Result "1/2-1/2"]
[TimeControl "90 minutes for 40 moves + 30 minutes for the rest of the game + 30 seconds per move from move one."]
[WhiteTitle "GM"]
[BlackTitle "GM"]
[WhiteFideId "14204118"]
[BlackFideId "1039784"]
[WhiteElo "2780"]
[BlackElo "2735"]

1. c4 {[%clk 01:30:55]} {[%emt 00:00:04]} Nf6 {[%clk 01:30:33]} {[%emt
00:00:27]} 2. Nc3 {[%clk 01:31:19]} {[%emt 00:00:06]} g6 {[%clk 01:29:22]}
{[%emt 00:01:41]} 3. d4 {[%clk 01:31:39]} {[%emt 00:00:10]} d5 {[%clk
01:29:44]} {[%emt 00:00:07]} 4. Nf3 {[%clk 01:29:22]} {[%emt 00:02:47]} Bg7
{[%clk 01:29:57]} {[%emt 00:00:18]} 5. Bg5 {[%clk 01:29:40]} {[%emt 00:00:11]}
Ne4 {[%clk 01:28:42]} {[%emt 00:01:45]} 6. Bf4 {[%clk 01:30:02]} {[%emt
00:00:08]} Nxc3 {[%clk 01:27:06]} {[%emt 00:02:07]} 7. bxc3 {[%clk 01:30:25]}
{[%emt 00:00:07]} c5 {[%clk 01:27:19]} {[%emt 00:00:16]} 8. e3 {[%clk
01:30:28]} {[%emt 00:00:27]} O-O {[%clk 01:26:47]} {[%emt 00:01:01]} 9. cxd5
{[%clk 01:26:28]} {[%emt 00:04:31]} cxd4 {[%clk 01:27:03]} {[%emt 00:00:13]} 10.
cxd4 {[%clk 01:26:48]} {[%emt 00:00:10]} Qxd5 {[%clk 01:27:25]} {[%emt
00:00:08]} 11. Be2 {[%clk 01:24:38]} {[%emt 00:02:40]} Qa5+ {[%clk 01:27:45]}
{[%emt 00:00:11]} 12. Qd2 {[%clk 01:23:35]} {[%emt 00:01:33]} Qxd2+ {[%clk
01:27:02]} {[%emt 00:01:14]} 13. Kxd2 {[%clk 01:22:13]} {[%emt 00:01:52]} Nc6
{[%clk 01:26:34]} {[%emt 00:00:58]} 14. Rhc1 {[%clk 01:14:19]} {[%emt
00:08:24]} Rd8 {[%clk 01:22:13]} {[%emt 00:04:51]} 15. Rc5 {[%clk 01:14:02]}
{[%emt 00:00:47]} Bf5 {[%clk 01:05:46]} {[%emt 00:16:57]} 16. Rb5 {[%clk
00:40:50]} {[%emt 00:33:42]} e5 {[%clk 00:51:48]} {[%emt 00:14:28]} 17. Nxe5
{[%clk 00:40:37]} {[%emt 00:00:44]} Nxd4 {[%clk 00:48:55]} {[%emt 00:03:23]} 18.
exd4 {[%clk 00:41:02]} {[%emt 00:00:05]} Rxd4+ {[%clk 00:49:17]} {[%emt
00:00:08]} 19. Ke3 {[%clk 00:41:28]} {[%emt 00:00:04]} Re4+ {[%clk 00:49:40]}
{[%emt 00:00:07]} 20. Kf3 {[%clk 00:41:54]} {[%emt 00:00:04]} g5 {[%clk
00:48:57]} {[%emt 00:01:13]} 21. Bxg5 {[%clk 00:42:05]} {[%emt 00:00:19]} Rxe5
{[%clk 00:48:48]} {[%emt 00:00:40]} 22. Rxe5 {[%clk 00:42:27]} Bxe5 {[%clk
00:49:14]} {[%emt 00:00:12]} 23. Rc1 {[%clk 00:42:23]} {[%emt 00:00:32]} Rc8
{[%clk 00:40:40]} {[%emt 00:09:05]} 24. Rxc8+ {[%clk 00:41:18]} {[%emt
00:01:36]} Bxc8 {[%clk 00:41:06]} {[%emt 00:00:04]} 25. Ke4 {[%clk 00:41:41]}
{[%emt 00:00:07]} Bc7 {[%clk 00:38:30]} {[%emt 00:03:07]} 26. Bc4 {[%clk
00:40:05]} {[%emt 00:02:05]} Kg7 {[%clk 00:38:41]} {[%emt 00:00:19]} 27. h4
{[%clk 00:37:13]} {[%emt 00:03:22]} b5 {[%clk 00:33:07]} {[%emt 00:06:05]} 28.
Bd5 {[%clk 00:35:54]} {[%emt 00:01:44]} a5 {[%clk 00:32:20]} {[%emt 00:01:21]}
29. Be3 {[%clk 00:34:44]} {[%emt 00:01:39]} h5 {[%clk 00:32:01]} {[%emt
00:00:50]} 30. Bc5 {[%clk 00:32:21]} {[%emt 00:02:53]} Kf6 {[%clk 00:31:24]}
{[%emt 00:01:08]} 31. a3 {[%clk 00:32:16]} {[%emt 00:00:35]} Bf5+ {[%clk
00:31:17]} {[%emt 00:00:37]} 32. Ke3 {[%clk 00:32:36]} {[%emt 00:00:10]} Bd7
{[%clk 00:23:44]} {[%emt 00:08:03]} 33. Bf3 {[%clk 00:31:31]} {[%emt 00:01:35]}
Bg4 {[%clk 00:22:50]} {[%emt 00:01:25]} 34. Bc6 {[%clk 00:26:36]} {[%emt
00:05:24]} b4 {[%clk 00:23:13]} {[%emt 00:00:07]} 35. axb4 {[%clk 00:27:04]}
{[%emt 00:00:03]} axb4 {[%clk 00:23:39]} {[%emt 00:00:04]} 36. f3 {[%clk
00:27:20]} {[%emt 00:00:14]} Be6 {[%clk 00:20:41]} {[%emt 00:03:28]} 37. Bxb4
{[%clk 00:27:43]} {[%emt 00:00:08]} Bg3 {[%clk 00:20:40]} {[%emt 00:00:30]} 38.
Ba5 {[%clk 00:26:19]} {[%emt 00:01:52]} Kg7 {[%clk 00:18:23]} {[%emt 00:02:48]}
39. Bd8 {[%clk 00:17:54]} {[%emt 00:08:55]} f6 {[%clk 00:18:27]} {[%emt
00:00:25]} 40. Ke4 {[%clk 00:18:18]} {[%emt 00:00:06]} Bxh4 {[%clk 00:18:15]}
{[%emt 00:00:43]} 41. Be8 {[%clk 00:18:41]} {[%emt 00:00:07]} f5+ {[%clk
00:18:31]} {[%emt 00:00:14]} 42. Ke5 {[%clk 00:19:10]} {[%emt 00:00:01]} Bxd8
{[%clk 00:18:55]} {[%emt 00:00:06]} 43. Kxe6 {[%clk 00:19:38]} {[%emt
00:00:02]} f4 {[%clk 00:19:15]} {[%emt 00:00:10]} 44. Bxh5 {[%clk 00:20:06]}
{[%emt 00:00:02]} 1/2-1/2

[Event "TePe Sigeman Chess Tournament 2026"]
[Site "Elite Plaza Hotel, Gustav Adolfs Torg 49, Malmo, Sweden"]
[Date "2026.05.07"]
[Round "7.3"]
[White "Carlsen, Magnus"]
[Black "Erdogmus, Yagiz Kaan"]
[Result "1-0"]
[TimeControl "90 minutes for 40 moves + 30 minutes for the rest of the game + 30 seconds per move from move one."]
[WhiteTitle "GM"]
[BlackTitle "GM"]
[WhiteFideId "1503014"]
[BlackFideId "44599790"]
[WhiteElo "2840"]
[BlackElo "2708"]

1. d4 {[%clk 01:30:47]} {[%emt 00:00:12]} d5 {[%clk 01:30:51]} {[%emt
00:00:10]} 2. Nf3 {[%clk 01:30:39]} {[%emt 00:00:38]} c5 {[%clk 01:31:10]}
{[%emt 00:00:12]} 3. c4 {[%clk 01:30:48]} {[%emt 00:00:20]} dxc4 {[%clk
01:31:14]} {[%emt 00:00:26]} 4. e4 {[%clk 01:27:37]} {[%emt 00:03:41]} cxd4
{[%clk 01:31:00]} {[%emt 00:00:44]} 5. Qxd4 {[%clk 01:28:00]} {[%emt 00:00:07]}
Qxd4 {[%clk 01:30:58]} {[%emt 00:00:32]} 6. Nxd4 {[%clk 01:28:20]} {[%emt
00:00:10]} Bd7 {[%clk 01:31:27]} {[%emt 00:00:01]} 7. Bxc4 {[%clk 01:28:30]}
{[%emt 00:00:20]} Nc6 {[%clk 01:31:56]} {[%emt 00:00:02]} 8. Be3 {[%clk
01:28:28]} {[%emt 00:00:32]} Nxd4 {[%clk 01:28:18]} {[%emt 00:04:08]} 9. Bxd4
{[%clk 01:28:55]} {[%emt 00:00:02]} e6 {[%clk 01:28:36]} {[%emt 00:00:13]} 10.
f3 {[%clk 01:20:14]} {[%emt 00:09:11]} Ne7 {[%clk 01:02:48]} {[%emt 00:26:19]}
11. Kf2 {[%clk 01:19:02]} {[%emt 00:01:41]} Nc6 {[%clk 00:54:54]} {[%emt
00:08:24]} 12. Be3 {[%clk 01:19:26]} {[%emt 00:00:05]} Rc8 {[%clk 00:54:12]}
{[%emt 00:01:13]} 13. Nd2 {[%clk 01:10:38]} {[%emt 00:09:17]} Ne5 {[%clk
00:49:16]} {[%emt 00:05:27]} 14. Be2 {[%clk 01:09:45]} {[%emt 00:01:23]} Bc5
{[%clk 00:49:25]} {[%emt 00:00:21]} 15. Bxc5 {[%clk 01:05:49]} {[%emt
00:04:26]} Rxc5 {[%clk 00:49:53]} {[%emt 00:00:02]} 16. Rhc1 {[%clk 01:06:02]}
{[%emt 00:00:18]} Rxc1 {[%clk 00:47:46]} {[%emt 00:02:37]} 17. Rxc1 {[%clk
01:06:30]} {[%emt 00:00:02]} Nc6 {[%clk 00:41:18]} {[%emt 00:06:58]} 18. e5
{[%clk 01:01:22]} {[%emt 00:05:38]} Ke7 {[%clk 00:34:21]} {[%emt 00:07:27]} 19.
f4 {[%clk 01:01:45]} {[%emt 00:00:06]} Rc8 {[%clk 00:33:00]} {[%emt 00:01:52]}
20. a3 {[%clk 00:57:29]} {[%emt 00:04:45]} f6 {[%clk 00:30:27]} {[%emt
00:03:04]} 21. exf6+ {[%clk 00:47:05]} {[%emt 00:10:54]} gxf6 {[%clk 00:30:50]}
{[%emt 00:00:07]} 22. Rc3 {[%clk 00:44:18]} {[%emt 00:03:17]} Nd4 {[%clk
00:25:36]} {[%emt 00:05:44]} 23. Rxc8 {[%clk 00:37:19]} {[%emt 00:07:29]} Bxc8
{[%clk 00:26:05]} 24. Bd3 {[%clk 00:37:40]} {[%emt 00:00:08]} h6 {[%clk
00:23:53]} {[%emt 00:02:42]} 25. Ke3 {[%clk 00:36:11]} {[%emt 00:01:58]} Nc6
{[%clk 00:16:10]} {[%emt 00:08:14]} 26. Nf3 {[%clk 00:35:22]} {[%emt 00:01:18]}
b6 {[%clk 00:15:15]} {[%emt 00:01:26]} 27. g4 {[%clk 00:32:00]} {[%emt
00:03:51]} e5 {[%clk 00:13:07]} {[%emt 00:02:39]} 28. h3 {[%clk 00:30:34]}
{[%emt 00:01:55]} Kd6 {[%clk 00:12:10]} {[%emt 00:01:27]} 29. Nd2 {[%clk
00:27:52]} {[%emt 00:03:12]} exf4+ {[%clk 00:08:40]} {[%emt 00:04:01]} 30. Kxf4
{[%clk 00:28:19]} {[%emt 00:00:02]} Ne5 {[%clk 00:09:08]} {[%emt 00:00:02]} 31.
Bf5 {[%clk 00:27:09]} {[%emt 00:01:40]} Bb7 {[%clk 00:08:20]} {[%emt 00:01:18]}
32. Bc2 {[%clk 00:21:52]} {[%emt 00:05:48]} Bg2 {[%clk 00:05:19]} {[%emt
00:03:31]} 33. Kg3 {[%clk 00:20:05]} {[%emt 00:02:17]} Bd5 {[%clk 00:05:40]}
{[%emt 00:00:09]} 34. Kf4 {[%clk 00:16:40]} {[%emt 00:03:55]} Bg2 {[%clk
00:04:27]} {[%emt 00:01:44]} 35. h4 {[%clk 00:14:43]} {[%emt 00:02:26]} Ke7
{[%clk 00:04:07]} {[%emt 00:00:50]} 36. b3 {[%clk 00:12:37]} {[%emt 00:02:37]}
Bh3 {[%clk 00:01:51]} {[%emt 00:02:46]} 37. Bf5 {[%clk 00:09:08]} {[%emt
00:03:59]} Bg2 {[%clk 00:01:47]} {[%emt 00:00:34]} 38. Ne4 {[%clk 00:07:14]}
{[%emt 00:02:22]} Bxe4 {[%clk 00:00:42]} {[%emt 00:01:35]} 39. Bxe4 {[%clk
00:04:08]} {[%emt 00:03:36]} Nf7 {[%clk 00:00:40]} {[%emt 00:00:33]} 40. Bd5
{[%clk 00:02:43]} {[%emt 00:01:54]} Nd6 {[%clk 00:00:50]} {[%emt 00:00:20]} 41.
a4 {[%clk 00:26:51]} {[%emt 00:06:22]} Kd7 {[%clk 00:28:48]} {[%emt 00:02:33]}
42. b4 {[%clk 00:17:39]} {[%emt 00:09:42]} Nc8 {[%clk 00:25:12]} {[%emt
00:04:06]} 43. Ke4 {[%clk 00:16:41]} {[%emt 00:01:27]} Ne7 {[%clk 00:13:28]}
{[%emt 00:12:15]} 44. Kd4 {[%clk 00:16:32]} {[%emt 00:00:38]} f5 {[%clk
00:07:13]} {[%emt 00:06:47]} 45. g5 {[%clk 00:11:31]} {[%emt 00:05:30]} hxg5
{[%clk 00:06:44]} {[%emt 00:00:59]} 46. hxg5 {[%clk 00:11:53]} {[%emt
00:00:08]} Kd6 {[%clk 00:05:51]} {[%emt 00:01:23]} 47. Bb7 {[%clk 00:10:40]}
{[%emt 00:01:42]} Ng6 {[%clk 00:04:33]} {[%emt 00:01:49]} 48. Kc4 {[%clk
00:10:45]} {[%emt 00:00:24]} Nf8 {[%clk 00:02:52]} {[%emt 00:02:11]} 49. Bc8
{[%clk 00:08:53]} {[%emt 00:02:22]} Ne6 {[%clk 00:01:28]} {[%emt 00:01:55]} 50.
g6 {[%clk 00:08:26]} {[%emt 00:00:56]} Ke7 {[%clk 00:01:27]} {[%emt 00:00:31]}
51. Kb5 {[%clk 00:07:14]} {[%emt 00:01:42]} f4 {[%clk 00:01:25]} {[%emt
00:00:32]} 52. Ka6 {[%clk 00:06:16]} {[%emt 00:01:27]} f3 {[%clk 00:00:46]}
{[%emt 00:01:09]} 53. Kxa7 {[%clk 00:05:54]} {[%emt 00:00:53]} b5 {[%clk
00:00:41]} {[%emt 00:00:36]} 54. g7 {[%clk 00:06:08]} {[%emt 00:00:15]} Nxg7
{[%clk 00:01:08]} {[%emt 00:00:03]} 55. axb5 {[%clk 00:06:28]} {[%emt
00:00:10]} f2 {[%clk 00:00:34]} {[%emt 00:01:04]} 56. Bh3 {[%clk 00:06:52]}
{[%emt 00:00:06]} Ne6 {[%clk 00:00:32]} {[%emt 00:00:33]} 57. b6 {[%clk
00:07:14]} {[%emt 00:00:07]} Nd4 {[%clk 00:00:32]} {[%emt 00:00:31]} 58. b7
{[%clk 00:07:34]} {[%emt 00:00:09]} Nc6+ {[%clk 00:00:43]} {[%emt 00:00:20]} 59.
Ka8 {[%clk 00:07:52]} {[%emt 00:00:12]} 1-0

[Event "TePe Sigeman Chess Tournament 2026"]
[Site "Elite Plaza Hotel, Gustav Adolfs Torg 49, Malmo, Sweden"]
[Date "2026.05.07"]
[Round "7.4"]
[White "Grandelius, Nils"]
[Black "Zhu, Jiner"]
[Result "1/2-1/2"]
[TimeControl "90 minutes for 40 moves + 30 minutes for the rest of the game + 30 seconds per move from move one."]
[WhiteTitle "GM"]
[BlackTitle "GM"]
[WhiteFideId "1710400"]
[BlackFideId "8608059"]
[WhiteElo "2662"]
[BlackElo "2546"]

1. c4 {[%clk 01:30:47]} {[%emt 00:00:11]} e5 {[%clk 01:30:47]} {[%emt
00:00:14]} 2. d3 {[%clk 01:30:56]} {[%emt 00:00:21]} Bb4+ {[%clk 01:30:43]}
{[%emt 00:00:35]} 3. Bd2 {[%clk 01:31:10]} {[%emt 00:00:15]} Bxd2+ {[%clk
01:30:46]} {[%emt 00:00:27]} 4. Qxd2 {[%clk 01:31:31]} {[%emt 00:00:09]} d6
{[%clk 01:27:26]} {[%emt 00:03:51]} 5. Nc3 {[%clk 01:31:02]} {[%emt 00:00:58]}
Nf6 {[%clk 01:27:34]} {[%emt 00:00:22]} 6. g3 {[%clk 01:26:41]} {[%emt
00:04:51]} O-O {[%clk 01:27:26]} {[%emt 00:00:38]} 7. Bg2 {[%clk 01:27:05]}
{[%emt 00:00:06]} Re8 {[%clk 01:25:26]} {[%emt 00:02:31]} 8. Nf3 {[%clk
01:26:05]} {[%emt 00:01:29]} c6 {[%clk 01:19:00]} {[%emt 00:06:57]} 9. e4
{[%clk 01:12:55]} {[%emt 00:13:40]} a6 {[%clk 00:55:38]} {[%emt 00:23:53]} 10.
O-O {[%clk 00:57:33]} {[%emt 00:15:50]} b5 {[%clk 00:55:37]} {[%emt 00:00:33]}
11. a3 {[%clk 00:57:00]} {[%emt 00:01:02]} Be6 {[%clk 00:48:01]} {[%emt
00:08:05]} 12. Ng5 {[%clk 00:46:08]} {[%emt 00:11:22]} Qb6 {[%clk 00:36:10]}
{[%emt 00:12:21]} 13. b4 {[%clk 00:41:53]} {[%emt 00:04:44]} Nbd7 {[%clk
00:33:17]} {[%emt 00:03:23]} 14. Nxe6 {[%clk 00:38:49]} {[%emt 00:03:34]} Rxe6
{[%clk 00:33:40]} {[%emt 00:00:07]} 15. Rab1 {[%clk 00:32:53]} {[%emt
00:06:26]} Ree8 {[%clk 00:30:43]} {[%emt 00:03:28]} 16. a4 {[%clk 00:26:30]}
{[%emt 00:06:54]} Nf8 {[%clk 00:30:21]} {[%emt 00:00:51]} 17. axb5 {[%clk
00:23:24]} {[%emt 00:03:36]} axb5 {[%clk 00:30:35]} {[%emt 00:00:17]} 18. cxb5
{[%clk 00:23:50]} {[%emt 00:00:04]} cxb5 {[%clk 00:31:00]} {[%emt 00:00:04]} 19.
Qe3 {[%clk 00:22:56]} {[%emt 00:01:23]} Qb8 {[%clk 00:24:20]} {[%emt 00:07:11]}
20. Nd5 {[%clk 00:17:40]} {[%emt 00:05:46]} Nxd5 {[%clk 00:23:11]} {[%emt
00:01:40]} 21. exd5 {[%clk 00:18:08]} {[%emt 00:00:01]} Ng6 {[%clk 00:23:05]}
{[%emt 00:00:36]} 22. Rfc1 {[%clk 00:13:50]} {[%emt 00:04:48]} Ne7 {[%clk
00:23:27]} {[%emt 00:00:08]} 23. Be4 {[%clk 00:14:03]} {[%emt 00:00:17]} f5
{[%clk 00:16:17]} {[%emt 00:07:41]} 24. Bf3 {[%clk 00:14:24]} {[%emt 00:00:09]}
Qa7 {[%clk 00:16:16]} {[%emt 00:00:31]} 25. Rc3 {[%clk 00:12:37]} {[%emt
00:02:16]} Qxe3 {[%clk 00:13:57]} {[%emt 00:02:50]} 26. fxe3 {[%clk 00:13:05]}
{[%emt 00:00:01]} Rec8 {[%clk 00:14:20]} {[%emt 00:00:07]} 27. Rbc1 {[%clk
00:11:20]} {[%emt 00:02:15]} Rxc3 {[%clk 00:14:02]} {[%emt 00:00:49]} 28. Rxc3
{[%clk 00:11:48]} {[%emt 00:00:01]} Kf8 {[%clk 00:11:53]} {[%emt 00:02:38]} 29.
e4 {[%clk 00:09:11]} {[%emt 00:03:08]} Ra4 {[%clk 00:09:47]} {[%emt 00:02:36]}
30. Rb3 {[%clk 00:07:25]} {[%emt 00:02:16]} Ra2 {[%clk 00:08:14]} {[%emt
00:02:03]} 31. Bg2 {[%clk 00:07:13]} {[%emt 00:00:41]} Kf7 {[%clk 00:05:10]}
{[%emt 00:03:35]} 32. Bf1 {[%clk 00:07:31]} {[%emt 00:00:13]} Kf6 {[%clk
00:04:33]} {[%emt 00:01:07]} 33. Rc3 {[%clk 00:07:25]} {[%emt 00:00:36]} Rb2
{[%clk 00:03:23]} {[%emt 00:01:40]} 34. Rc7 {[%clk 00:07:49]} {[%emt 00:00:06]}
Rxb4 {[%clk 00:03:39]} {[%emt 00:00:13]} 35. Rd7 {[%clk 00:08:00]} {[%emt
00:00:18]} fxe4 {[%clk 00:02:13]} {[%emt 00:01:57]} 36. dxe4 {[%clk 00:08:25]}
{[%emt 00:00:05]} Rxe4 {[%clk 00:02:41]} {[%emt 00:00:02]} 37. Rxd6+ {[%clk
00:08:45]} {[%emt 00:00:09]} Kf7 {[%clk 00:01:32]} {[%emt 00:01:39]} 38. Rd7
{[%clk 00:01:38]} {[%emt 00:07:36]} Kf6 {[%clk 00:01:58]} {[%emt 00:00:05]} 39.
Rd6+ {[%clk 00:02:02]} {[%emt 00:00:06]} Kg5 {[%clk 00:01:43]} {[%emt
00:00:45]} 40. Bxb5 {[%clk 00:02:01]} {[%emt 00:00:30]} Nf5 {[%clk 00:00:45]}
{[%emt 00:01:30]} 41. Ra6 {[%clk 00:27:50]} {[%emt 00:04:41]} Rd4 {[%clk
00:27:50]} {[%emt 00:03:25]} 42. Be2 {[%clk 00:23:49]} {[%emt 00:04:31]} g6
{[%clk 00:21:47]} {[%emt 00:06:34]} 43. Ra5 {[%clk 00:15:26]} {[%emt 00:08:53]}
Rd2 {[%clk 00:19:23]} {[%emt 00:02:54]} 44. Bf3 {[%clk 00:14:58]} {[%emt
00:00:58]} Nd4 {[%clk 00:16:18]} {[%emt 00:03:35]} 45. Bg2 {[%emt 00:04:19]}
Rd1+ {[%clk 00:12:48]} 46. Kf2 {[%clk 00:15:28]} {[%emt 00:00:10]} Rd2+ {[%clk
00:13:13]} {[%emt 00:00:04]} 1/2-1/2